bitfinex/quotes_BTCUSD_20241111
["timestamp","ask_amount","ask_price","bid_price","bid_amount"]
[1731285376771,0.0805,80665.0,80645.0,0.18759966]
[1731285376772,0.123989,80652.0,80645.0,0.18759966]
[1731285376924,0.123989,80652.0,80640.0,0.124007]
[1731285376925,0.146989,80652.0,80636.0,0.18759966]
[1731285377144,0.146989,80652.0,80619.0,0.005]
[1731285377145,0.45131649,80652.0,80628.0,0.00052398]
[1731285377345,0.227524,80629.0,80628.0,0.18812364]
[1731285377501,0.35843234,80629.0,80628.0,0.18812364]
[1731285377702,0.23440834,80629.0,80615.0,0.001684]
[1731285377931,0.124036,80622.0,80615.0,0.001684]
[1731285378156,0.124042,80618.0,80615.0,0.001684]
[1731285378377,0.023,80616.0,80615.0,0.001684]
[1731285378853,0.15199386,80616.0,80615.0,0.001684]
[1731285379073,0.02794986,80616.0,80615.0,0.001684]
[1731285379278,0.15199386,80616.0,80615.0,0.001684]
[1731285379552,0.02794986,80616.0,80615.0,0.001684]
[1731285380004,0.29313516,80616.0,80615.0,0.001684]
[1731285380202,0.27793607,80616.0,80615.0,0.001684]
[1731285380411,0.28293607,80616.0,80615.0,0.001684]
[1731285380615,0.36003607,80616.0,80615.0,0.001684]
[1731285380745,0.47003607,80616.0,80615.0,0.001684]
[1731285380953,0.56308984,80616.0,80615.0,0.001684]
[1731285381159,0.57464043,80616.0,80615.0,0.001684]
[1731285381521,0.139051,80612.0,80611.0,0.001684]
[1731285381673,0.147067,80601.0,80600.0,0.18759966]
[1731285381884,0.27300921,80601.0,80600.0,0.18759966]
[1731285382088,0.005,80587.0,80586.0,0.001404]
[1731285382288,0.49044888,80587.0,80586.0,0.001404]
[1731285382487,0.2828577,80587.0,80586.0,0.001404]
[1731285383990,0.252094,80584.0,80570.0,0.001684]
[1731285384193,0.37803621,80584.0,80570.0,0.001684]
[1731285384508,0.3830087,80584.0,80570.0,0.001684]
[1731285385095,0.2780087,80584.0,80570.0,0.001684]
[1731285385527,0.12906649,80584.0,80570.0,0.001684]
[1731285385729,0.12906649,80584.0,80570.0,0.0751415]
[1731285385925,0.12906649,80584.0,80570.0,0.001684]
[1731285386406,0.12906649,80584.0,80572.0,0.124111]
[1731285386843,0.15206649,80584.0,80572.0,0.124111]
[1731285387456,0.15206649,80584.0,80570.0,0.001684]
[1731285387457,0.15206649,80584.0,80570.0,0.18928366]
[1731285388080,0.2780087,80584.0,80570.0,0.001684]
[1731285388290,0.2830087,80584.0,80570.0,0.001684]
[1731285392301,0.2780087,80584.0,80570.0,0.001684]
[1731285392502,0.2550087,80584.0,80570.0,0.001684]
[1731285392945,0.2600087,80584.0,80570.0,0.001684]
[1731285393296,0.4187087,80584.0,80570.0,0.001684]
[1731285393582,0.50683964,80584.0,80570.0,0.001684]
[1731285394223,0.53183964,80584.0,80570.0,0.001684]
[1731285394400,0.52983964,80584.0,80570.0,0.001684]
[1731285396164,0.53183964,80584.0,80570.0,0.001684]
[1731285396369,0.4417087,80584.0,80570.0,0.001684]
[1731285397219,0.2600087,80584.0,80570.0,0.001684]
[1731285399120,0.2550087,80584.0,80570.0,0.001684]
[1731285399271,0.2550087,80584.0,80570.0,0.125798]
[1731285399672,0.2550087,80584.0,80570.0,0.001684]
[1731285400649,0.2600087,80584.0,80570.0,0.001684]
[1731285402769,0.2550087,80584.0,80570.0,0.001684]
[1731285402952,0.2550087,80584.0,80570.0,0.249912]
[1731285403163,0.2550087,80584.0,80575.0,0.124106]
[1731285403164,0.12906649,80584.0,80575.0,0.124106]
[1731285403369,0.00497249,80584.0,80578.0,0.124102]
[1731285403579,0.00497249,80584.0,80583.0,0.125779]
[1731285403786,0.124094,80585.0,80583.0,0.001684]
[1731285403994,0.12898444,80584.0,80583.0,0.001684]
[1731285404205,0.00489044,80584.0,80583.0,0.001684]
[1731285404448,0.00489044,80584.0,80583.0,0.125779]
[1731285404651,0.000842,80586.0,80585.0,0.124092]
[1731285405594,0.000842,80586.0,80585.0,0.25003421]
[1731285405781,0.000842,80586.0,80585.0,0.35919301]
[1731285406038,0.000842,80586.0,80585.0,0.35003421]
[1731285406449,0.000842,80586.0,80585.0,0.124092]
[1731285406652,0.000842,80586.0,80583.0,0.001684]
[1731285407448,0.124094,80584.0,80583.0,0.001684]
[1731285407919,0.12902555,80584.0,80583.0,0.01087437]
[1731285408445,0.00493155,80584.0,80583.0,0.01087437]
[1731285408876,0.124934,80586.0,80583.0,0.01087437]
[1731285408877,0.124092,80585.0,80583.0,0.01087437]
[1731285409090,0.00493303,80584.0,80583.0,0.001684]
[1731285409654,0.124934,80586.0,80583.0,0.001684]
[1731285409655,0.124093,80585.0,80583.0,0.001684]
[1731285410033,0.00493303,80584.0,80583.0,0.001684]
[1731285410423,0.000842,80586.0,80583.0,0.001684]
[1731285410717,0.00493303,80584.0,80583.0,0.001684]
[1731285410917,0.000842,80586.0,80583.0,0.001684]
[1731285411135,0.00027468,80586.0,80583.0,0.001684]
[1731285411342,0.00027468,80586.0,80583.0,0.125779]
[1731285411684,0.00491699,80585.0,80583.0,0.001684]
[1731285411889,0.00027468,80586.0,80583.0,0.001684]
[1731285412458,0.00027468,80586.0,80584.0,0.0383073]
[1731285412797,0.00491813,80585.0,80584.0,0.0383073]
[1731285412988,0.00027468,80586.0,80583.0,0.125779]
[1731285413194,0.00027468,80586.0,80583.0,0.001684]
[1731285413437,0.00027468,80586.0,80583.0,0.125778]
[1731285413638,0.00027468,80586.0,80584.0,0.16232595]
[1731285413842,0.00027468,80586.0,80584.0,0.124093]
[1731285414192,0.00027468,80586.0,80585.0,0.16232102]
[1731285414419,0.00027468,80586.0,80585.0,0.48811597]
[1731285414646,0.00027468,80586.0,80585.0,0.73628849]
[1731285414850,0.18759966,80609.0,80596.0,0.33649267]
[1731285415273,0.18759966,80609.0,80596.0,0.37475429]
[1731285417705,0.18759966,80609.0,80596.0,0.124075]
[1731285418129,0.18759966,80609.0,80596.0,0.16230739]
[1731285418341,0.18759966,80609.0,80596.0,0.124075]
[1731285418754,0.18759966,80609.0,80596.0,0.16230751]
[1731285418960,0.18759966,80609.0,80596.0,0.124075]
[1731285420015,0.18759966,80609.0,80585.0,0.1495]
[1731285420245,0.18759966,80609.0,80588.0,0.248175]
[1731285420448,0.18759966,80609.0,80596.0,0.124075]
[1731285420656,0.18759966,80609.0,80596.0,0.22655614]
[1731285420904,0.18759966,80609.0,80596.0,0.43439835]
[1731285421114,0.18759966,80609.0,80596.0,0.47015057]
[1731285423508,0.18759966,80618.0,80617.0,0.124043]
[1731285423750,0.18759966,80618.0,80617.0,0.33646067]
[1731285423881,0.00703234,80618.0,80617.0,0.56436067]
[1731285424103,0.18759966,80627.0,80626.0,0.124029]
[1731285424303,0.000842,80628.0,80627.0,0.124027]
[1731285424541,0.000842,80628.0,80627.0,0.35244935]
[1731285424728,0.247959,80659.0,80639.0,0.124009]
[1731285424965,0.247971,80655.0,80632.0,0.248037]
[1731285425174,0.247971,80655.0,80623.0,0.005]
[1731285425175,0.247996,80647.0,80628.0,0.1]
[1731285425349,0.247996,80647.0,80623.0,0.21241767]
[1731285425584,0.18759966,80658.0,80639.0,0.21241767]
[1731285425790,0.18759966,80658.0,80647.0,0.123997]
[1731285425791,0.18759966,80648.0,80647.0,0.123997]
[1731285425999,0.124005,80642.0,80631.0,0.1]
[1731285426171,0.248015,80640.0,80630.0,0.18759966]
[1731285426373,0.252994,80647.0,80619.0,0.43567766]
[1731285426374,0.12594221,80639.0,80619.0,0.43567766]
[1731285426695,0.248025,80637.0,80628.0,0.18759966]
[1731285426849,0.005,80643.0,80624.0,0.124031]
[1731285426850,0.124018,80633.0,80624.0,0.124031]
[1731285427234,0.12594221,80636.0,80620.0,0.21241767]
[1731285427447,0.046541,80665.0,80638.0,0.248019]
[1731285427650,0.18759966,80644.0,80639.0,0.248018]
[1731285427884,0.18759966,80644.0,80643.0,0.124003]
[1731285428212,0.0786,80660.0,80642.0,0.248009]
[1731285428413,0.18759966,80648.0,80642.0,0.124003]
[1731285428608,0.247967,80656.0,80642.0,0.248008]
[1731285428780,0.123989,80652.0,80642.0,0.124004]
[1731285428980,0.123989,80652.0,80641.0,0.21241767]
[1731285429191,0.12594221,80656.0,80642.0,0.248006]
[1731285429404,0.12594221,80656.0,80641.0,0.21241767]
[1731285429708,0.123988,80653.0,80644.0,0.124001]
[1731285429903,0.12594221,80656.0,80643.0,0.248006]
[1731285430103,0.12594221,80656.0,80641.0,0.21241767]
[1731285430104,0.31354187,80656.0,80641.0,0.21241767]
[1731285430269,0.0786,80660.0,80641.0,0.21241767]
[1731285430470,0.18759966,80658.0,80642.0,0.0024799]
[1731285430749,0.18759966,80658.0,80650.0,0.123991]
[1731285430980,0.0786,80660.0,80654.0,0.123984]
[1731285431153,0.18759966,80658.0,80651.0,0.12399]
[1731285431305,0.202577,80660.0,80649.0,0.123994]
[1731285431507,0.0786,80660.0,80651.0,0.123989]
[1731285431726,0.0786,80660.0,80652.0,0.123989]
[1731285431727,0.01002782,80659.0,80652.0,0.123989]
[1731285431925,0.01002782,80659.0,80641.0,0.248012]
[1731285432174,0.01002782,80659.0,80649.0,0.247988]
[1731285432387,0.01002651,80658.0,80646.0,0.247995]
[1731285432538,0.01002651,80658.0,80648.0,0.247991]
[1731285432539,0.18759966,80658.0,80648.0,0.247991]
[1731285432741,0.01002519,80657.0,80651.0,0.12399]
[1731285432949,0.123989,80652.0,80643.0,0.124002]
[1731285433151,0.0786,80660.0,80642.0,0.248009]
[1731285433348,0.123983,80656.0,80647.0,0.123997]
[1731285433555,0.01002255,80655.0,80642.0,0.248009]
[1731285433759,0.123984,80656.0,80646.0,0.123997]
[1731285433959,0.01004505,80655.0,80647.0,0.123996]
[1731285434153,0.01004505,80655.0,80645.0,0.248]
[1731285434154,0.01004505,80655.0,80650.0,0.247983]
[1731285434357,0.24878,80665.0,80648.0,0.21241767]
[1731285434592,0.123977,80660.0,80651.0,0.12399]
[1731285434833,0.01004851,80659.0,80651.0,0.12399]
[1731285435248,0.01004851,80659.0,80649.0,0.247988]
[1731285435464,0.01004851,80659.0,80648.0,0.21241767]
[1731285435670,0.123979,80659.0,80650.0,0.123991]
[1731285435900,0.0100472,80658.0,80650.0,0.123991]
[1731285436439,0.0100472,80658.0,80652.0,0.123989]
[1731285436644,0.123978,80660.0,80652.0,0.123989]
[1731285436844,0.13402788,80657.0,80648.0,0.21241767]
[1731285437044,0.247945,80663.0,80640.0,0.31241767]
[1731285437250,0.123991,80651.0,80640.0,0.21241767]
[1731285437455,0.123988,80653.0,80645.0,0.123999]
[1731285437661,0.18759966,80647.0,80624.0,0.21241767]
[1731285437860,0.13598289,80652.0,80646.0,0.18759966]
[1731285438066,0.01006418,80646.0,80644.0,0.124]
[1731285438266,0.12594221,80652.0,80639.0,0.248018]
[1731285438558,0.01006286,80645.0,80638.0,0.248022]
[1731285438746,0.18759966,80654.0,80637.0,0.18759966]
[1731285438747,0.000842,80660.0,80641.0,0.0487]
[1731285438948,0.000842,80660.0,80659.0,0.123978]
[1731285439328,0.00078816,80660.0,80659.0,0.123978]
[1731285444098,0.00078816,80660.0,80642.0,0.12594221]
[1731285444215,0.00078816,80660.0,80646.0,0.18759966]
[1731285444414,0.123986,80654.0,80648.0,0.123994]
[1731285444622,0.00909889,80653.0,80641.0,0.248012]
[1731285444879,0.00909889,80653.0,80642.0,0.248009]
[1731285444880,0.247976,80653.0,80642.0,0.248009]
[1731285445048,0.123998,80647.0,80638.0,0.18759966]
[1731285445254,0.00909757,80652.0,80638.0,0.18759966]
[1731285445605,0.18759966,80647.0,80628.0,0.40001733]
[1731285445789,0.12594221,80652.0,80628.0,0.40001733]
[1731285445790,0.00927847,80651.0,80628.0,0.40001733]
[1731285445930,0.12594221,80652.0,80629.0,0.124024]
[1731285445931,0.124009,80640.0,80629.0,0.124024]
[1731285446148,0.124009,80640.0,80632.0,0.12402]
[1731285446351,0.13327266,80639.0,80632.0,0.12402]
[1731285446649,0.13327266,80639.0,80629.0,0.124023]
[1731285446650,0.124014,80636.0,80629.0,0.124023]
[1731285446893,0.13327266,80639.0,80631.0,0.124021]
[1731285447099,0.00925739,80635.0,80632.0,0.124019]
[1731285447267,0.248006,80643.0,80619.0,0.64809533]
[1731285447268,0.124012,80637.0,80629.0,0.124023]
[1731285447514,0.00925607,80634.0,80626.0,0.248057]
[1731285447717,0.248009,80642.0,80626.0,0.248057]
[1731285447718,0.124014,80636.0,80626.0,0.248057]
[1731285447927,0.00925475,80633.0,80621.0,0.248073]
[1731285448129,0.124021,80631.0,80614.0,0.124047]
[1731285448348,0.0824,80632.0,80611.0,0.18759966]
[1731285448349,0.620122,80629.0,80611.0,0.18759966]
[1731285448552,0.248052,80628.0,80611.0,0.18759966]
[1731285448756,0.124029,80626.0,80618.0,0.12404]
[1731285448958,0.00920556,80628.0,80618.0,0.12404]
[1731285449177,0.1332326,80625.0,80618.0,0.12404]
[1731285449391,0.00920424,80627.0,80620.0,0.248077]
[1731285449605,0.0824,80632.0,80622.0,0.248071]
[1731285449606,0.00920028,80624.0,80622.0,0.248071]
[1731285449814,0.00920028,80624.0,80620.0,0.248077]
[1731285449815,0.18759966,80631.0,80620.0,0.248077]
[1731285449990,0.18759966,80631.0,80624.0,0.124031]
[1731285450225,0.00920819,80630.0,80622.0,0.248071]
[1731285450431,0.00920819,80630.0,80618.0,0.248083]
[1731285450642,0.00920819,80630.0,80629.0,0.124024]
[1731285450850,0.0824,80632.0,80617.0,0.21241767]
[1731285451048,0.00919166,80629.0,80624.0,0.124031]
[1731285451224,0.0091943,80631.0,80625.0,0.24806]
[1731285451453,0.0091943,80631.0,80630.0,0.124023]
[1731285451864,0.0824,80632.0,80617.0,0.21241767]
[1731285452071,0.0091944,80631.0,80608.0,0.21241767]
[1731285452279,0.248046,80630.0,80612.0,0.1]
[1731285452604,0.124031,80625.0,80612.0,0.3481]
[1731285452775,0.248052,80628.0,80613.0,0.248098]
[1731285452915,0.00918517,80624.0,80614.0,0.248095]
[1731285453124,0.12594221,80631.0,80614.0,0.248095]
[1731285453323,0.00918385,80623.0,80618.0,0.12404]
[1731285453570,0.124031,80625.0,80618.0,0.12404]
[1731285453791,0.00918254,80622.0,80618.0,0.12404]
[1731285453993,0.12594221,80631.0,80615.0,0.21241767]
[1731285454189,0.248857,80640.0,80628.0,0.21241767]
[1731285454190,0.000842,80640.0,80628.0,0.21241767]
[1731285454388,0.18759966,80631.0,80630.0,0.372069]
[1731285454612,0.000842,80640.0,80633.0,0.124017]
[1731285454817,0.000842,80640.0,80635.0,0.124014]
[1731285455213,0.000842,80640.0,80630.0,0.248046]
[1731285455405,0.000842,80640.0,80639.0,0.124009]
[1731285456577,0.000842,80640.0,80631.0,0.248043]
[1731285456751,0.000842,80640.0,80633.0,0.248037]
[1731285456928,0.000842,80640.0,80634.0,0.124015]
[1731285457129,0.000842,80640.0,80631.0,0.248043]
[1731285457329,0.000842,80640.0,80636.0,0.124013]
[1731285457572,0.000842,80640.0,80614.0,0.01]
[1731285457573,0.18759966,80637.0,80614.0,0.01]
[1731285457801,0.248045,80631.0,80622.0,0.1]
[1731285457991,0.124026,80628.0,80622.0,0.1]
[1731285458197,0.124026,80628.0,80620.0,0.124038]
[1731285458413,0.124026,80628.0,80616.0,0.1]
[1731285458561,0.124023,80630.0,80622.0,0.124034]
[1731285459040,0.18759966,80634.0,80618.0,0.248083]
[1731285459041,0.124022,80631.0,80623.0,0.124032]
[1731285459182,0.0793,80635.0,80620.0,0.18759966]
[1731285459389,0.0793,80635.0,80629.0,0.124024]
[1731285459586,0.0793,80635.0,80620.0,0.40001733]
[1731285459790,0.124019,80633.0,80622.0,0.248071]
[1731285459984,0.248035,80634.0,80620.0,0.40001733]
[1731285460250,0.248035,80634.0,80622.0,0.124035]
[1731285460450,0.248035,80634.0,80620.0,0.21241767]
[1731285460658,0.12402,80632.0,80624.0,0.124031]
[1731285460829,0.248035,80634.0,80624.0,0.124031]
[1731285461035,0.124023,80630.0,80621.0,0.248074]
[1731285461263,0.12402,80632.0,80624.0,0.124032]
[1731285461682,0.203317,80635.0,80621.0,0.248074]
[1731285461887,0.0793,80635.0,80630.0,0.124023]
[1731285462110,0.0793,80635.0,80620.0,0.21241767]
[1731285462111,0.0793,80635.0,80628.0,0.124025]
[1731285462281,0.0793,80635.0,80630.0,0.124022]
[1731285462981,0.0793,80635.0,80624.0,0.001682]
[1731285462982,0.124017,80634.0,80626.0,0.124028]
[1731285463213,0.0793,80635.0,80624.0,0.001682]
[1731285463595,0.0793,80635.0,80630.0,0.124022]
[1731285463844,0.0793,80635.0,80631.0,0.124021]
[1731285464069,0.00078816,80660.0,80639.0,0.124009]
[1731285464268,0.18759966,80658.0,80639.0,0.46984852]
[1731285464479,0.18759966,80649.0,80639.0,0.46736888]
[1731285464892,0.18759966,80649.0,80641.0,0.005]
[1731285465096,0.18759966,80649.0,80648.0,0.33641267]
[1731285465309,0.18759966,80649.0,80648.0,0.46235488]
[1731285465536,0.18759966,80658.0,80657.0,0.123981]
[1731285465960,0.00078816,80660.0,80649.0,0.247988]
[1731285466165,0.00078816,80660.0,80657.0,0.12398]
[1731285466411,0.00078816,80660.0,80649.0,0.247988]
[1731285466412,0.00078816,80660.0,80659.0,0.123978]
[1731285467654,0.00078816,80660.0,80655.0,0.247966]
[1731285468068,0.00078816,80660.0,80645.0,0.247997]
[1731285468286,0.00078816,80660.0,80647.0,0.247994]
[1731285468489,0.00078816,80660.0,80654.0,0.123985]
[1731285468711,0.00078816,80660.0,80646.0,0.12094221]
[1731285468960,0.00078816,80660.0,80659.0,0.33639567]
[1731285469162,0.00078816,80660.0,80659.0,0.43639567]
[1731285469369,0.00078816,80660.0,80659.0,0.56233788]
[1731285469819,0.000841,80665.0,80664.0,0.238971]
[1731285470058,0.000702,80667.0,80666.0,0.230967]
[1731285470264,0.000702,80667.0,80666.0,0.3573881]
[1731285470489,0.000702,80667.0,80666.0,0.35490921]
[1731285473973,0.000702,80667.0,80666.0,0.223967]
[1731285474183,0.000702,80667.0,80666.0,0.123967]
[1731285475179,0.000702,80667.0,80666.0,0.46232688]
[1731285475383,0.00185951,80694.0,80668.0,0.240964]
[1731285475638,0.00185951,80694.0,80677.0,0.33836867]
[1731285475769,0.00185951,80694.0,80677.0,0.46231088]
[1731285481422,0.247857,80692.0,80668.0,0.31241767]
[1731285481612,0.00185951,80694.0,80652.0,0.002]
[1731285481613,0.075,80677.0,80660.0,0.18759966]
[1731285481817,0.075,80677.0,80669.0,0.18759966]
[1731285482014,0.00873837,80676.0,80670.0,0.123961]
[1731285482244,0.00873837,80676.0,80665.0,0.247939]
[1731285482456,0.00873837,80676.0,80675.0,0.123954]
[1731285482646,0.075,80677.0,80671.0,0.123959]
[1731285483053,0.00873837,80676.0,80670.0,0.247923]
[1731285483266,0.00873837,80676.0,80671.0,0.123959]
[1731285484050,0.00873837,80676.0,80665.0,0.247939]
[1731285484256,0.123968,80666.0,80658.0,0.123979]
[1731285484475,0.371857,80676.0,80666.0,0.123966]
[1731285484632,0.123956,80674.0,80666.0,0.123967]
[1731285484875,0.00872717,80673.0,80666.0,0.123967]
[1731285485263,0.12396,80671.0,80661.0,0.46036867]
[1731285485442,0.12396,80671.0,80662.0,0.123974]
[1731285485651,0.00872717,80673.0,80658.0,0.1]
[1731285485874,0.00872322,80670.0,80658.0,0.28759966]
[1731285486048,0.24792,80671.0,80661.0,0.123975]
[1731285486226,0.123964,80669.0,80661.0,0.123975]
[1731285486427,0.123965,80668.0,80661.0,0.123975]
[1731285486620,0.13268558,80668.0,80661.0,0.123975]
[1731285487068,0.13268558,80668.0,80654.0,0.24797]
[1731285487069,0.00872058,80668.0,80655.0,0.1]
[1731285487224,0.123968,80666.0,80659.0,0.123978]
[1731285487616,0.00871663,80665.0,80659.0,0.123978]
[1731285487830,0.00871663,80665.0,80645.0,0.005]
[1731285487831,0.129006,80641.0,80640.0,0.001682]
[1731285488031,0.124027,80627.0,80624.0,0.001682]
[1731285488236,0.309927,80627.0,80624.0,0.001682]
[1731285488443,0.45561531,80627.0,80624.0,0.001682]
[1731285488859,0.79397519,80627.0,80624.0,0.001682]
[1731285489099,0.139031,80625.0,80624.0,0.001682]
[1731285489315,0.124074,80597.0,80586.0,0.001684]
[1731285489517,0.124074,80597.0,80596.0,0.74384469]
[1731285489767,0.13316856,80596.0,80586.0,0.001684]
[1731285489972,0.124076,80596.0,80586.0,0.001684]
[1731285490187,0.13316825,80595.0,80586.0,0.001684]
[1731285490383,0.124089,80587.0,80586.0,0.001684]
[1731285490944,0.13314279,80587.0,80586.0,0.001684]
[1731285491821,0.00905379,80587.0,80586.0,0.001684]
[1731285492238,0.124089,80587.0,80586.0,0.001684]
[1731285492660,0.1330044,80587.0,80586.0,0.001684]
[1731285493301,0.1419198,80587.0,80586.0,0.001684]
[1731285494631,0.0178308,80587.0,80586.0,0.001684]
[1731285495247,0.0178308,80587.0,80586.0,0.125775]
[1731285495702,0.0089154,80587.0,80586.0,0.125775]
[1731285496982,0.0089154,80587.0,80586.0,0.44067425]
[1731285497194,0.0089154,80587.0,80586.0,0.43819267]
[1731285498035,0.0089154,80587.0,80586.0,0.225775]
[1731285499785,0.1330044,80587.0,80586.0,0.001684]
[1731285500228,0.14294534,80587.0,80586.0,0.001684]
[1731285500992,0.01885634,80587.0,80586.0,0.001684]
[1731285501408,0.0089154,80587.0,80586.0,0.001684]
[1731285502034,0.01885634,80587.0,80586.0,0.001684]
[1731285502287,0.0089154,80587.0,80586.0,0.001684]
[1731285502494,0.1330044,80587.0,80586.0,0.001684]
[1731285502711,0.01885634,80587.0,80586.0,0.001684]
[1731285503137,0.01885634,80587.0,80586.0,0.125775]
[1731285503343,0.0089154,80587.0,80586.0,0.001684]
[1731285503550,0.01885634,80587.0,80586.0,0.001684]
[1731285503758,0.0089154,80587.0,80586.0,0.001684]
[1731285504497,0.0089154,80587.0,80586.0,0.125775]
[1731285504706,0.0089154,80587.0,80586.0,0.001684]
[1731285504853,0.01885634,80587.0,80586.0,0.001684]
[1731285505071,0.0089154,80587.0,80586.0,0.001684]
[1731285505259,0.01885634,80587.0,80586.0,0.001684]
[1731285505463,0.01885634,80587.0,80586.0,0.125775]
[1731285505464,0.0089154,80587.0,80586.0,0.125775]
[1731285505666,0.01885634,80587.0,80586.0,0.2541988]
[1731285506001,0.0089154,80587.0,80586.0,0.2541988]
[1731285506527,0.0089154,80587.0,80586.0,0.001684]
[1731285506528,0.1330044,80587.0,80586.0,0.001684]
[1731285506950,0.14292507,80587.0,80586.0,0.001684]
[1731285507155,0.01883607,80587.0,80586.0,0.125775]
[1731285507351,0.0089154,80587.0,80586.0,0.001684]
[1731285507761,0.1330044,80587.0,80586.0,0.001684]
[1731285507962,0.14292507,80587.0,80586.0,0.001684]
[1731285508162,0.01883607,80587.0,80586.0,0.001684]
[1731285508578,0.0089154,80587.0,80586.0,0.125775]
[1731285511210,0.0089154,80587.0,80586.0,0.33819267]
[1731285511398,0.0089154,80587.0,80586.0,0.56413488]
[1731285511606,0.0089154,80587.0,80586.0,0.35171721]
[1731285512265,0.0089154,80587.0,80586.0,0.001684]
[1731285512680,0.01880116,80587.0,80586.0,0.001684]
[1731285512885,0.0089154,80587.0,80586.0,0.001684]
[1731285513058,0.01880116,80587.0,80586.0,0.001684]
[1731285513262,0.0089154,80587.0,80586.0,0.001684]
[1731285513464,0.01880116,80587.0,80586.0,0.001684]
[1731285513672,0.0089154,80587.0,80586.0,0.001684]
[1731285513873,0.01880116,80587.0,80586.0,0.001684]
[1731285514649,0.14289016,80587.0,80586.0,0.001684]
[1731285514975,0.01880116,80587.0,80586.0,0.001684]
[1731285515186,0.14289016,80587.0,80586.0,0.001684]
[1731285516258,0.01880116,80587.0,80586.0,0.001684]
[1731285517335,0.0089154,80587.0,80586.0,0.125775]
[1731285517552,0.0089154,80587.0,80586.0,0.22825674]
[1731285517715,0.00186134,80607.0,80605.0,0.124061]
[1731285517914,0.00186134,80607.0,80605.0,0.25000321]
[1731285518180,0.00186134,80607.0,80606.0,0.12406]
[1731285520026,0.00186134,80607.0,80599.0,0.248142]
[1731285520264,0.00186134,80607.0,80604.0,0.124063]
[1731285521026,0.0068628,80606.0,80605.0,0.124061]
[1731285521629,0.0068628,80606.0,80594.0,0.21741767]
[1731285521630,0.0068628,80606.0,80595.0,0.19113539]
[1731285521875,0.0068628,80606.0,80605.0,0.124061]
[1731285522116,0.00186134,80607.0,80606.0,0.12406]
[1731285523817,0.18697639,80624.0,80623.0,0.124034]
[1731285524494,0.000841,80624.0,80623.0,0.124034]
[1731285524916,0.000841,80624.0,80623.0,0.43893193]
[1731285525119,0.000841,80624.0,80623.0,0.44145167]
[1731285525320,0.000841,80624.0,80623.0,0.56739388]
[1731285525527,0.000841,80624.0,80623.0,0.57739388]
[1731285528562,0.000841,80624.0,80623.0,0.57939388]
[1731285528962,0.000841,80624.0,80623.0,0.57739388]
[1731285529172,0.000841,80624.0,80623.0,0.36497621]
[1731285531559,0.000841,80624.0,80623.0,0.34997621]
[1731285531687,0.000841,80624.0,80623.0,0.224034]
[1731285531889,0.000841,80624.0,80623.0,0.124034]
[1731285533053,0.000841,80624.0,80623.0,0.224034]
[1731285533688,0.000841,80624.0,80612.0,0.005]
[1731285533883,0.000841,80624.0,80613.0,0.12594221]
[1731285534850,0.18613539,80622.0,80614.0,0.1]
[1731285535052,0.000841,80624.0,80614.0,0.1]
[1731285535254,0.00645195,80621.0,80614.0,0.1]
[1731285535465,0.00648784,80623.0,80615.0,0.12594221]
[1731285535661,0.000841,80624.0,80615.0,0.12594221]
[1731285536076,0.18613539,80623.0,80614.0,0.1]
[1731285536457,0.000841,80624.0,80611.0,0.1]
[1731285536649,0.000841,80624.0,80623.0,0.124034]
[1731285538977,0.124874,80624.0,80618.0,0.12404]
[1731285539137,0.000841,80624.0,80610.0,0.18613539]
[1731285539560,0.000841,80624.0,80623.0,0.124034]
[1731285539820,0.000841,80624.0,80623.0,0.34997621]
[1731285540674,0.000841,80624.0,80623.0,0.35497621]
[1731285541972,0.000841,80624.0,80623.0,0.34997621]
[1731285542446,0.000841,80624.0,80623.0,0.224034]
[1731285543758,0.000841,80624.0,80600.0,0.21241767]
[1731285543966,0.000841,80624.0,80608.0,0.39855306]
[1731285544192,0.000841,80624.0,80609.0,0.12594221]
[1731285544398,0.00650008,80623.0,80609.0,0.12594221]
[1731285544603,0.19263547,80623.0,80609.0,0.12594221]
[1731285545039,0.19263547,80623.0,80610.0,0.1]
[1731285547188,0.19263547,80623.0,80618.0,0.124041]
[1731285547394,0.124036,80622.0,80616.0,0.124044]
[1731285547602,0.124036,80622.0,80610.0,0.1]
[1731285547603,0.00649788,80622.0,80610.0,0.1]
[1731285547845,0.00649788,80622.0,80618.0,0.124041]
[1731285548308,0.000841,80624.0,80610.0,0.1]
[1731285548543,0.000841,80624.0,80623.0,0.124034]
[1731285548749,0.000841,80624.0,80623.0,0.33645167]
[1731285549571,0.000841,80624.0,80623.0,0.43645167]
[1731285549801,0.000841,80624.0,80623.0,0.224034]
[1731285550860,0.000841,80624.0,80622.0,0.124034]
[1731285551076,0.124034,80623.0,80608.0,0.1]
[1731285551279,0.000841,80624.0,80619.0,0.124039]
[1731285551500,0.124874,80624.0,80618.0,0.12404]
[1731285551715,0.124874,80624.0,80616.0,0.124044]
[1731285551886,0.0802,80622.0,80615.0,0.24809]
[1731285552098,0.0802,80622.0,80619.0,0.12404]
[1731285552355,0.0064527,80621.0,80619.0,0.12404]
[1731285552581,0.0064527,80621.0,80610.0,0.124053]
[1731285552810,0.0064527,80621.0,80599.0,0.56055767]
[1731285552811,0.0064527,80621.0,80600.0,0.1]
[1731285553038,0.0064527,80621.0,80611.0,0.124051]
[1731285553039,0.124042,80618.0,80611.0,0.124051]
[1731285553280,0.00644377,80620.0,80616.0,0.124044]
[1731285553431,0.00643718,80617.0,80616.0,0.124044]
[1731285553635,0.0802,80622.0,80607.0,0.39855306]
[1731285553839,0.0802,80622.0,80621.0,0.124037]
[1731285554445,0.0802,80622.0,80617.0,0.124042]
[1731285554666,0.0802,80622.0,80609.0,0.124054]
[1731285554827,0.0802,80622.0,80611.0,0.248104]
[1731285555246,0.0802,80622.0,80616.0,0.124044]
[1731285555457,0.124039,80620.0,80612.0,0.124051]
[1731285555667,0.0802,80622.0,80608.0,0.248114]
[1731285555875,0.0802,80622.0,80617.0,0.124043]
[1731285556124,0.0802,80622.0,80617.0,0.124042]
[1731285557576,0.0802,80622.0,80609.0,0.248111]
[1731285557577,0.0802,80622.0,80618.0,0.12404]